Workbook

Sheet Blad3
A1: BOSTADSRÄTTSLÄGENHETER | B1: 2010 | E1: 2011 | H1: FÖRÄNDRING
A2: LÄN | B2: ANTAL | C2: SNITTPRIS | D2: SNITT KR/KVM | E2: ANTAL | F2: SNITTPRIS | G2: SNITT KR/KVM | H2: ANTAL | I2: SNITTPRIS | J2: SNITT KR/KVM
A3: Stockholms | B3: 3050 | C3: 2189688.131 | D3: 30380.87573 | E3: 3559 | F3: 2469112.082 | G3: 35517.31629 | H3: =E3/B3-1 -> 0.1668852459 | I3: =F3/C3-1 -> 0.1276090174 | J3: 0.1690682193
A4: Uppsala | B4: 399 | C4: 1286597.744 | D4: 19683.62056 | E4: 472 | F4: 1400158.898 | G4: 23109.07647 | H4: =E4/B4-1 -> 0.1829573935 | I4: =F4/C4-1 -> 0.08826469224 | J4: =G4/D4-1 -> 0.1740257033
A5: Södermanlands | B5: 170 | C5: 862208.8235 | D5: 10275.98466 | E5: 214 | F5: 920200.9346 | G5: 11513.63755 | H5: 0.2588235294 | I5: 0.06725993688 | J5: 0.1204412937
A6: Östergötlands | B6: 279 | C6: 669007.1685 | D6: 9158.174188 | E6: 279 | F6: 750903.2258 | G6: 10930.43527 | H6: 0 | I6: 0.1224143196 | J6: 0.1935168568
A7: Jönköpings | B7: 183 | C7: 644472.6776 | D7: 10107.38448 | E7: 204 | F7: 758186.2745 | G7: 12404.22018 | H7: 0.1147540984 | I7: 0.1764444031 | J7: 0.227243329
A8: Kronobergs | B8: 67 | C8: 762697.6567 | D8: 10144.01991 | E8: 65 | F8: 824830.7692 | G8: 10734.17805 | H8: -0.02985074627 | I8: 0.0814649317 | J8: 0.05817793622
A9: Kalmar | B9: 132 | C9: 728901.5152 | D9: 10304.06452 | E9: 149 | F9: 804697.9866 | G9: 13024.21581 | H9: 0.1287878788 | I9: 0.1039872601 | J9: 0.2639881844
A10: Gotlands | B10: 78 | C10: 2019959.615 | D10: 31039.8231 | E10: 77 | F10: 2006492.468 | G10: 28667.23478 | H10: -0.01282051282 | I10: -0.006667038167 | J10: -0.07643691504
A11: Blekinge | B11: 84 | C11: 572226.1905 | D11: 8145.222077 | E11: 97 | F11: 589845.3608 | G11: 8764.233109 | H11: 0.1547619048 | I11: 0.03079056961 | J11: 0.07599682678
A12: Skåne | B12: 2117 | C12: 1289892.862 | D12: 17043.05156 | E12: 2524 | F12: 1403564.435 | G12: 18664.67434 | H12: 0.1922531885 | I12: 0.08812481772 | J12: 0.09514861652
A13: Hallands | B13: 142 | C13: 1286779.401 | D13: 15825.03465 | E13: 155 | F13: 1288190.323 | G13: 16492.37095 | H13: 0.09154929577 | I13: 0.001096474789 | J13: 0.04216965807
A14: Västra Götalands | B14: 1257 | C14: 1163149.701 | D14: 17000.29942 | E14: 1277 | F14: 1275934.229 | G14: 18078.76573 | H14: 0.01591089897 | I14: 0.0969647574 | J14: 0.06343807747
A15: Värmlands | B15: 168 | C15: 623630.9524 | D15: 8585.043314 | E15: 175 | F15: 871598.8743 | G15: 11203.95374 | H15: 0.04166666667 | I15: 0.3976196514 | J15: 0.3050550049
A16: Örebro | B16: 115 | C16: 677984.887 | D16: 8934.705355 | E16: 150 | F16: 813653.4933 | G16: 10609.18494 | H16: 0.3043478261 | I16: 0.2001056498 | J16: 0.1874129614
A17: Västmanlands | B17: 215 | C17: 899186.0465 | D17: 11739.28724 | E17: 259 | F17: 950455.5985 | G17: 12317.823 | H17: 0.2046511628 | I17: 0.05701773525 | J17: 0.04928201745
A18: Dalarnas | B18: 110 | C18: 493245.1273 | D18: 7738.399164 | E18: 178 | F18: 748421.4607 | G18: 12443.14779 | H18: 0.6181818182 | I18: 0.5173418231 | J18: 0.6079744049
A19: Gävleborgs | B19: 170 | C19: 620247.0588 | D19: 8335.129282 | E19: 196 | F19: 646923.4694 | G19: 9574.912436 | H19: 0.1529411765 | I19: 0.04300933021 | J19: 0.1487419226
A20: Västernorrlands | B20: 136 | C20: 504136.0294 | D20: 7218.377982 | E20: 162 | F20: 550895.0617 | G20: 7901.603816 | H20: 0.1911764706 | I20: 0.09275082436 | J20: 0.09465088075
A21: Jämtlands | B21: 129 | C21: 864821.7054 | D21: 13941.43566 | E21: 218 | F21: 1011495.413 | G21: 16932.56277 | H21: 0.6899224806 | I21: 0.1695999378 | J21: 0.2145494331
A22: Västerbottens | B22: 156 | C22: 621356.7179 | D22: 8823.581239 | E22: 159 | F22: 755377.3585 | G22: 11226.43103 | H22: 0.01923076923 | I22: 0.215690338 | J22: 0.2723213772
A23: Norrbottens | B23: 107 | C23: 336121.4953 | D23: 5378.215621 | E23: 127 | F23: 498152.7559 | G23: 7471.457387 | H23: 0.1869158879 | I23: 0.4820615844 | J23: 0.3892074832
A24: RIKET | B24: =SUM(B3:B23) -> 9264 | C24: 1427061.346 | D24: 19808.17254 | E24: =SUM(E3:E23) -> 10696 | F24: 1593145.682 | G24: 22657.54912 | H24: =E24/B24-1 -> 0.1545768566 | I24: =F24/C24-1 -> 0.116382058 | J24: =G24/D24-1 -> 0.1438485337
A26: VILLOR | B26: 2010 | E26: 2011 | H26: FÖRÄNDRING
A27: LÄN | B27: ANTAL | C27: SNITTPRIS | E27: ANTAL | F27: SNITTPRIS | H27: ANTAL | I27: SNITTPRIS
A28: Stockholms | B28: 1326 | C28: 3995851.451 | E28: 1755 | F28: 4012595.685 | H28: =E28/B28-1 -> 0.3235294118 | I28: =F28/C28-1 -> 0.004190404505
A29: Uppsala | B29: 470 | C29: 2023472.666 | E29: 541 | F29: 2249120.749 | H29: =E29/B29-1 -> 0.1510638298 | I29: =F29/C29-1 -> 0.1115152611
A30: Södermanlands | B30: 445 | C30: 1997864.409 | E30: 509 | F30: 1883404.102 | H30: 0.1438202247 | I30: -0.05729132884
A31: Östergötlands | B31: 425 | C31: 1723748.235 | E31: 616 | F31: 1685343.182 | H31: 0.4494117647 | I31: -0.02227996681
A32: Jönköpings | B32: 603 | C32: 1297870.647 | E32: 764 | F32: 1260511.78 | H32: 0.2669983416 | I32: -0.02878473811
A33: Kronobergs | B33: 421 | C33: 1219232.779 | E33: 512 | F33: 1158341.797 | H33: 0.216152019 | I33: -0.0499420482
A34: Kalmar | B34: 570 | C34: 1159214.035 | E34: 841 | F34: 1243958.976 | H34: 0.4754385965 | I34: 0.07310551681
A35: Gotlands | B35: 111 | C35: 2355495.495 | E35: 128 | F35: 1992765.625 | H35: 0.1531531532 | I35: -0.1539930224
A36: Blekinge | B36: 470 | C36: 1286853.177 | E36: 603 | F36: 1231945.274 | H36: 0.2829787234 | I36: -0.04266835095
A37: Skåne | B37: 2416 | C37: 2659922.947 | E37: 3465 | F37: 2654910.758 | H37: 0.4341887417 | I37: -0.001884336113
A38: Hallands | B38: 477 | C38: 2313715.723 | E38: 632 | F38: 2598485.759 | H38: 0.3249475891 | I38: 0.1230790945
A39: Västra Götalands | B39: 1894 | C39: 1874802.64 | E39: 2499 | F39: 1964551.981 | H39: 0.3194297782 | I39: 0.04787135401
A40: Värmlands | B40: 823 | C40: 971264.8846 | E40: 1003 | F40: 982050.8475 | H40: 0.2187120292 | I40: 0.01110506831
A41: Örebro | B41: 612 | C41: 1122122.549 | E41: 643 | F41: 1137900.622 | H41: 0.05065359477 | I41: 0.01406091793
A42: Västmanlands | B42: 375 | C42: 1627136 | E42: 494 | F42: 1629518.219 | H42: 0.3173333333 | I42: 0.001464056246
A43: Dalarnas | B43: 602 | C43: 1103677.741 | E43: 730 | F43: 1221702.055 | H43: 0.2126245847 | I43: 0.1069372966
A44: Gävleborgs | B44: 726 | C44: 971308.5399 | E44: 921 | F44: 1048491.857 | H44: 0.2685950413 | I44: 0.07946323291
A45: Västernorrlands | B45: 487 | C45: 920010.2669 | E45: 644 | F45: 991381.9798 | H45: 0.3223819302 | I45: 0.07757708304
A46: Jämtlands | B46: 175 | C46: 1162422.857 | E46: 259 | F46: 1224169.884 | H46: 0.48 | I46: 0.05311924714
A47: Västerbottens | B47: 395 | C47: 1142275.949 | E47: 452 | F47: 1260856.195 | H47: 0.1443037975 | I47: 0.1038105069
A48: Norrbottens | B48: 557 | C48: 812989.228 | E48: 601 | F48: 831565.7238 | H48: 0.078994614 | I48: 0.02284962106
A49: RIKET | B49: =SUM(B28:B48) -> 14380 | C49: 1863446.82 | E49: =SUM(E28:E48) -> 18612 | F49: 1934836.509 | H49: =E49/B49-1 -> 0.2942976356 | I49: =F49/C49-1 -> 0.03831055896
